[Event "44th Chess Olympiad Open 2022"]
[Site "Chennai"]
[Date "2022.07.31"]
[Round "3.57"]
[White "Yahi, Mohamed Salem"]
[Black "Okeke Issac"]
[Result "0-1"]
[WhiteElo "1862"]
[BlackElo "2204"]
[Annotator "RC"]
[PlyCount "83"]
[EventDate "2022.??.??"]
[TimeControl "60"]

1. e4 {[%emt 0:00:04]} c5 {[%emt 0:00:08]} 2. Nf3 {[%emt 0:00:05]} d6 {[%emt 0:
00:00]} 3. d4 {[%emt 0:00:09]} cxd4 {[%emt 0:00:05]} 4. Nxd4 {[%emt 0:00:08]}
Nf6 {[%emt 0:00:05]} 5. Nc3 {[%emt 0:00:09]} a6 {[%emt 0:00:06]} 6. a3 {
[%emt 0:01:01]} e5 {[%emt 0:00:46]} 7. Nf5 {[%emt 0:00:43]} Bxf5 {[%emt 0:00:
00]} 8. exf5 {[%emt 0:00:11]} d5 {[%emt 0:00:36]} 9. Bg5 {[%emt 0:00:34]} d4 {
[%emt 0:01:21]} 10. Bxf6 {[%emt 0:00:46]} Qxf6 {[%emt 0:01:29]} 11. Nd5 {
[%emt 0:00:10]} Qc6 {[%emt 0:01:47]} 12. Qf3 {[%emt 0:08:05]} Nd7 {[%emt 0:00:
00]} 13. f6 {[%emt 0:02:44]} Nxf6 {[%emt 0:01:41]} 14. Nxf6+ {[%emt 0:00:51]}
gxf6 {[%emt 0:00:08]} 15. Qxc6+ {[%emt 0:01:11]} bxc6 {[%emt 0:00:01]} 16. Bd3
{[%emt 0:00:13]} h5 {[%emt 0:09:49]} 17. h4 {[%emt 0:03:19]} a5 {[%emt 0:06:54]
} 18. Rh3 {[%emt 0:00:42]} Kd7 {[%emt 0:06:53]} 19. Rf3 {[%emt 0:04:17]} e4 {
[%emt 0:01:41]} 20. Rf4 {[%emt 0:05:07]} exd3 {[%emt 0:00:11]} 21. Rxd4+ {
[%emt 0:00:25]} Kc7 {[%emt 0:01:12]} 22. Rxd3 {[%emt 0:00:06]} Re8+ {[%emt 0:
00:00]} 23. Kf1 {[%emt 0:00:21]} Bd6 {[%emt 0:02:35]} 24. g3 {[%emt 0:01:24]}
Be5 {[%emt 0:02:21]} 25. Rb1 {[%emt 0:01:04]} Rd8 {[%emt 0:00:39]} 26. Re3 {
[%emt 0:04:07]} Rd2 {[%emt 0:01:14]} 27. c3 {[%emt 0:03:40]} Rb8 {[%emt 0:00:
00]} 28. b4 {[%emt 0:01:42]} Rc2 {[%emt 0:07:15]} 29. f4 {[%emt 0:00:52]} Rxc3
{[%emt 0:00:51]} 30. Rbe1 {[%emt 0:08:21]} Rxe3 {[%emt 0:02:44]} 31. Rxe3 {
[%emt 0:00:05]} Bd6 {[%emt 0:00:30]} 32. bxa5 {[%emt 0:03:12]} Ra8 {[%emt 0:00:
00]} 33. Kg2 {[%emt 0:00:40]} Kd7 {[%emt 0:00:09]} 34. Rb3 {[%emt 0:01:41]}
Rxa5 {[%emt 0:00:22]} 35. Rb7+ {[%emt 0:01:09]} Bc7 {[%emt 0:01:56]} 36. Rb3 {
[%emt 0:00:34]} f5 {[%emt 0:03:29]} 37. Kf2 {[%emt 0:01:23]} Bd6 {[%emt 0:00:
00]} 38. Rb7+ {[%emt 0:00:17]} Ke6 {[%emt 0:00:00]} 39. Kg2 {[%emt 0:01:08]}
Rxa3 {[%emt 0:00:05]} 40. Rb6 {[%emt 0:00:40]} Ra2+ {[%emt 0:00:37]} 41. Kh1 {
[%emt 0:31:38]} c5 {[%emt 0:30:20]} 42. Rc6 {[%emt 0:16:18]} 0-1

[Event "44th Chess Olympiad Open 2022"]
[Site "Chennai"]
[Date "2022.07.31"]
[Round "3.58"]
[White "Berend, Fred"]
[Black "Ayyad, Maher"]
[Result "1-0"]
[WhiteElo "2307"]
[BlackElo "2101"]
[Annotator "RC"]
[PlyCount "139"]
[EventDate "2022.??.??"]
[TimeControl "60"]

1. e4 {[%emt 0:00:14]} c5 {[%emt 0:00:13]} 2. Nf3 {[%emt 0:00:04]} e6 {[%emt 0:
00:00]} 3. d3 {[%emt 0:00:27]} d5 {[%emt 0:00:13]} 4. Qe2 {[%emt 0:00:32]} Be7
{[%emt 0:00:35]} 5. g3 {[%emt 0:00:16]} Nf6 {[%emt 0:00:08]} 6. Bg2 {[%emt 0:
00:00]} O-O {[%emt 0:00:05]} 7. O-O {[%emt 0:01:39]} Nc6 {[%emt 0:00:12]} 8. e5
{[%emt 0:00:32]} Nd7 {[%emt 0:05:24]} 9. c4 {[%emt 0:00:32]} f6 {[%emt 0:04:24]
} 10. exf6 {[%emt 0:01:05]} Nxf6 {[%emt 0:00:09]} 11. Bf4 {[%emt 0:01:03]} Bd6
{[%emt 0:01:33]} 12. Bxd6 {[%emt 0:00:12]} Qxd6 {[%emt 0:00:06]} 13. Nc3 {
[%emt 0:00:16]} a6 {[%emt 0:02:57]} 14. Rac1 {[%emt 0:02:37]} Bd7 {[%emt 0:00:
00]} 15. Rfe1 {[%emt 0:05:48]} Rae8 {[%emt 0:02:01]} 16. Ne5 {[%emt 0:08:34]}
Nd4 {[%emt 0:06:55]} 17. Qd1 {[%emt 0:00:39]} Bc8 {[%emt 0:00:40]} 18. f4 {
[%emt 0:01:17]} b5 {[%emt 0:11:11]} 19. Nb1 {[%emt 0:33:15]} Nd7 {[%emt 0:00:
00]} 20. Nf3 {[%emt 0:14:38]} Nxf3+ {[%emt 0:00:51]} 21. Qxf3 {[%emt 0:00:07]}
Nb6 {[%emt 0:08:00]} 22. b3 {[%emt 0:02:21]} e5 {[%emt 0:03:54]} 23. Qh5 {
[%emt 0:08:14]} dxc4 {[%emt 0:01:04]} 24. dxc4 {[%emt 0:01:36]} g6 {[%emt 0:00:
00]} 25. Rcd1 {[%emt 0:02:37]} Qf6 {[%emt 0:03:34]} 26. Qf3 {[%emt 0:05:58]}
exf4 {[%emt 0:01:48]} 27. Rxe8 {[%emt 0:00:04]} Rxe8 {[%emt 0:00:08]} 28. cxb5
{[%emt 0:01:25]} axb5 {[%emt 0:00:39]} 29. Nc3 {[%emt 0:02:09]} Bg4 {[%emt 0:
00:00]} 30. Ne4 {[%emt 0:03:09]} Bxf3 {[%emt 0:04:44]} 31. Nxf6+ {[%emt 0:00:
00]} Kf7 {[%emt 0:00:11]} 32. Bxf3 {[%emt 0:01:04]} Kxf6 {[%emt 0:00:11]} 33.
Bc6 {[%emt 0:00:23]} Re3 {[%emt 0:02:32]} 34. gxf4 {[%emt 0:00:45]} c4 {
[%emt 0:01:13]} 35. Bxb5 {[%emt 0:01:09]} cxb3 {[%emt 0:03:20]} 36. axb3 {
[%emt 0:00:06]} Kf5 {[%emt 0:04:10]} 37. Rd6 {[%emt 0:01:05]} Kxf4 {[%emt 0:00:
00]} 38. Rxb6 {[%emt 0:01:34]} Rxb3 {[%emt 0:00:05]} 39. Rb7 {[%emt 0:01:02]}
Rb1+ {[%emt 0:00:11]} 40. Kg2 {[%emt 0:00:01]} Rb2+ {[%emt 0:00:50]} 41. Kg1 {
[%emt 0:31:19]} Rb1+ {[%emt 0:30:09]} 42. Kf2 {[%emt 0:00:14]} Rb2+ {[%emt 0:
00:00]} 43. Kf1 {[%emt 0:00:53]} Rb1+ {[%emt 0:00:17]} 44. Ke2 {[%emt 0:00:28]}
Rb2+ {[%emt 0:00:05]} 45. Kd3 {[%emt 0:00:25]} Rxh2 {[%emt 0:00:05]} 46. Rf7+ {
[%emt 0:00:25]} Kg5 {[%emt 0:00:26]} 47. Bc6 {[%emt 0:00:38]} h5 {[%emt 0:00:
00]} 48. Be4 {[%emt 0:00:33]} Kh6 {[%emt 0:00:27]} 49. Ke3 {[%emt 0:00:37]} Rh4
{[%emt 0:00:35]} 50. Kf3 {[%emt 0:00:36]} Rg4 {[%emt 0:00:12]} 51. Rf6 {
[%emt 0:00:21]} Kg7 {[%emt 0:00:12]} 52. Rb6 {[%emt 0:00:25]} Kh6 {[%emt 0:00:
00]} 53. Bd3 {[%emt 0:00:21]} Kg7 {[%emt 0:00:13]} 54. Kf2 {[%emt 0:00:18]} Kh6
{[%emt 0:00:10]} 55. Be2 {[%emt 0:00:31]} Rg5 {[%emt 0:00:17]} 56. Rb7 {
[%emt 0:00:19]} Re5 {[%emt 0:00:45]} 57. Bd3 {[%emt 0:00:33]} Rd5 {[%emt 0:00:
00]} 58. Be4 {[%emt 0:00:25]} Rg5 {[%emt 0:00:10]} 59. Kf3 {[%emt 0:00:49]} Rg4
{[%emt 0:01:33]} 60. Rb6 {[%emt 0:00:20]} Kg7 {[%emt 0:00:23]} 61. Bd5 {
[%emt 0:01:08]} Kh6 {[%emt 0:00:40]} 62. Rb7 {[%emt 0:00:17]} Kg5 {[%emt 0:00:
00]} 63. Be4 {[%emt 0:00:50]} Rf4+ {[%emt 0:00:52]} 64. Ke3 {[%emt 0:00:01]}
Rf6 {[%emt 0:00:26]} 65. Rb1 {[%emt 0:00:08]} Kh6 {[%emt 0:00:16]} 66. Kd4 {
[%emt 0:00:19]} g5 {[%emt 0:01:46]} 67. Ke5 {[%emt 0:00:23]} Ra6 {[%emt 0:00:
00]} 68. Bd3 {[%emt 0:00:00]} Ra5+ {[%emt 0:00:00]} 69. Kf6 {[%emt 0:00:00]}
Ra3 {[%emt 0:00:00]} 70. Rb8 {[%emt 0:00:00]} 1-0

[Event "44th Chess Olympiad Open 2022"]
[Site "Chennai"]
[Date "2022.07.31"]
[Round "3.58"]
[White "Steil-Antoni, Fiona"]
[Black "Al-Burshaid, Ebrahim"]
[Result "1-0"]
[WhiteElo "2218"]
[BlackElo "1702"]
[Annotator "RC"]
[PlyCount "65"]
[EventDate "2022.??.??"]
[TimeControl "60"]

1. e4 {[%emt 0:00:03]} e5 {[%emt 0:00:06]} 2. d4 {[%emt 0:00:06]} exd4 {
[%emt 0:00:04]} 3. Qxd4 {[%emt 0:00:08]} Nc6 {[%emt 0:00:05]} 4. Qe3 {[%emt 0:
00:00]} Nf6 {[%emt 0:00:38]} 5. Nc3 {[%emt 0:00:08]} Bb4 {[%emt 0:00:28]} 6.
Bd2 {[%emt 0:00:11]} d6 {[%emt 0:02:50]} 7. O-O-O {[%emt 0:00:45]} O-O {
[%emt 0:02:13]} 8. Qg3 {[%emt 0:01:21]} Re8 {[%emt 0:02:02]} 9. f3 {[%emt 0:00:
00]} Be6 {[%emt 0:09:44]} 10. h4 {[%emt 0:03:56]} Nh5 {[%emt 0:11:55]} 11. Qh2
{[%emt 0:03:26]} Ne5 {[%emt 0:29:53]} 12. g4 {[%emt 0:02:56]} Nf6 {[%emt 0:00:
00]} 13. h5 {[%emt 0:06:08]} Bc4 {[%emt 0:09:36]} 14. Bh3 {[%emt 0:09:08]} c6 {
[%emt 0:09:17]} 15. g5 {[%emt 0:05:01]} Nfd7 {[%emt 0:06:07]} 16. f4 {[%emt 0:
00:00]} Qa5 {[%emt 0:00:38]} 17. fxe5 {[%emt 0:01:58]} Nxe5 {[%emt 0:00:41]}
18. Nb1 {[%emt 0:01:58]} Bxd2+ {[%emt 0:07:28]} 19. Qxd2 {[%emt 0:00:27]} Qxa2
{[%emt 0:00:33]} 20. Qxd6 {[%emt 0:01:04]} Qa1 {[%emt 0:00:28]} 21. b3 {
[%emt 0:06:09]} Bxb3 {[%emt 0:02:51]} 22. cxb3 {[%emt 0:01:13]} Qa2 {[%emt 0:
00:00]} 23. g6 {[%emt 0:06:14]} Qxb3 {[%emt 0:01:06]} 24. gxf7+ {[%emt 0:00:27]
} Nxf7 {[%emt 0:00:20]} 25. Qd3 {[%emt 0:00:55]} Qa4 {[%emt 0:00:42]} 26. Qd4 {
[%emt 0:01:23]} Qa2 {[%emt 0:00:45]} 27. Rd2 {[%emt 0:00:40]} Qb3 {[%emt 0:00:
00]} 28. Bd7 {[%emt 0:02:55]} Re5 {[%emt 0:00:52]} 29. Rh3 {[%emt 0:00:49]} Qb5
{[%emt 0:00:06]} 30. Ne2 {[%emt 0:01:22]} Rd8 {[%emt 0:00:18]} 31. h6 {[%emt 0:
00:00]} g6 {[%emt 0:00:29]} 32. Rf3 {[%emt 0:00:53]} Re7 {[%emt 0:00:45]} 33.
Qg7# {[%emt 0:02:07]} 1-0

[Event "44th Chess Olympiad Open 2022"]
[Site "Chennai"]
[Date "2022.07.31"]
[Round "3.58"]
[White "Ayyad, Husain"]
[Black "Berend, Elvira"]
[Result "1/2-1/2"]
[WhiteElo "2209"]
[BlackElo "2333"]
[Annotator "RC"]
[PlyCount "124"]
[EventDate "2022.??.??"]
[TimeControl "60"]

1. e4 {[%emt 0:00:02]} e5 {[%emt 0:00:10]} 2. Nf3 {[%emt 0:00:08]} Nc6 {
[%emt 0:00:10]} 3. d4 {[%emt 0:00:05]} exd4 {[%emt 0:00:10]} 4. Bc4 {[%emt 0:
00:00]} Nf6 {[%emt 0:00:13]} 5. e5 {[%emt 0:00:53]} d5 {[%emt 0:00:14]} 6. Bb5
{[%emt 0:00:01]} Nd7 {[%emt 0:00:45]} 7. O-O {[%emt 0:01:36]} Be7 {[%emt 0:00:
00]} 8. Bxc6 {[%emt 0:09:10]} bxc6 {[%emt 0:00:09]} 9. Nxd4 {[%emt 0:00:06]}
Nb8 {[%emt 0:00:48]} 10. e6 {[%emt 0:04:27]} fxe6 {[%emt 0:05:27]} 11. Re1 {
[%emt 0:00:53]} O-O {[%emt 0:02:43]} 12. Nxe6 {[%emt 0:00:27]} Bxe6 {[%emt 0:
00:00]} 13. Rxe6 {[%emt 0:00:02]} Bd6 {[%emt 0:06:20]} 14. Nd2 {[%emt 0:05:38]}
Nd7 {[%emt 0:06:45]} 15. Qh5 {[%emt 0:37:42]} Nf6 {[%emt 0:10:25]} 16. Qh3 {
[%emt 0:04:07]} Qc8 {[%emt 0:08:26]} 17. Nf3 {[%emt 0:03:18]} Re8 {[%emt 0:00:
00]} 18. Rxe8+ {[%emt 0:02:56]} Qxe8 {[%emt 0:00:16]} 19. Be3 {[%emt 0:00:05]}
Qg6 {[%emt 0:10:57]} 20. Qe6+ {[%emt 0:04:55]} Qf7 {[%emt 0:02:55]} 21. Qxf7+ {
[%emt 0:04:28]} Kxf7 {[%emt 0:00:05]} 22. Ng5+ {[%emt 0:00:05]} Kg6 {[%emt 0:
00:00]} 23. h3 {[%emt 0:01:13]} c5 {[%emt 0:07:14]} 24. Bd2 {[%emt 0:05:48]}
Re8 {[%emt 0:02:05]} 25. Kf1 {[%emt 0:00:06]} h6 {[%emt 0:00:33]} 26. Nf3 {
[%emt 0:00:04]} Ne4 {[%emt 0:00:49]} 27. Rd1 {[%emt 0:04:00]} c6 {[%emt 0:00:
00]} 28. g4 {[%emt 0:01:00]} Bc7 {[%emt 0:02:37]} 29. Nh4+ {[%emt 0:04:19]} Kf6
{[%emt 0:00:15]} 30. Be1 {[%emt 0:00:23]} Ng5 {[%emt 0:01:20]} 31. Rd3 {
[%emt 0:00:36]} c4 {[%emt 0:01:50]} 32. Ra3 {[%emt 0:02:07]} Bb6 {[%emt 0:00:
00]} 33. f4 {[%emt 0:01:33]} Ne4 {[%emt 0:02:31]} 34. Nf3 {[%emt 0:01:05]} Ke6
{[%emt 0:01:42]} 35. f5+ {[%emt 0:01:34]} Kf7 {[%emt 0:00:55]} 36. Nd2 {
[%emt 0:00:07]} h5 {[%emt 0:01:58]} 37. Nf3 {[%emt 0:03:04]} hxg4 {[%emt 0:00:
00]} 38. hxg4 {[%emt 0:00:00]} g6 {[%emt 0:00:11]} 39. Bc3 {[%emt 0:00:56]}
gxf5 {[%emt 0:00:28]} 40. Ne5+ {[%emt 0:00:20]} Ke6 {[%emt 0:00:38]} 41. gxf5+
{[%emt 0:30:13]} Kxf5 {[%emt 0:30:06]} 42. Nxc6 {[%emt 0:00:35]} Ng3+ {[%emt 0:
00:00]} 43. Kg2 {[%emt 0:01:00]} Ne2 {[%emt 0:00:27]} 44. Ba5 {[%emt 0:00:00]}
Bc5 {[%emt 0:00:00]} 45. Bb4 {[%emt 0:00:00]} Nf4+ {[%emt 0:00:00]} 46. Kf3 {
[%emt 0:00:00]} Bxb4 {[%emt 0:00:00]} 47. Nxb4 {[%emt 0:00:00]} Rh8 {[%emt 0:
00:00]} 48. Rxa7 {[%emt 0:00:00]} Rh3+ {[%emt 0:00:00]} 49. Kf2 {[%emt 0:00:00]
} d4 {[%emt 0:00:00]} 50. Rf7+ {[%emt 0:00:00]} Kg4 {[%emt 0:00:00]} 51. Rg7+ {
[%emt 0:00:00]} Kf5 {[%emt 0:00:00]} 52. a4 {[%emt 0:00:00]} d3 {[%emt 0:00:00]
} 53. Rf7+ {[%emt 0:00:00]} Kg4 {[%emt 0:00:12]} 54. cxd3 {[%emt 0:00:00]} Rf3+
{[%emt 0:00:52]} 55. Ke1 {[%emt 0:00:27]} Ng2+ {[%emt 0:00:05]} 56. Kd2 {
[%emt 0:00:01]} Rxf7 {[%emt 0:00:08]} 57. dxc4 {[%emt 0:00:01]} Rf2+ {[%emt 0:
00:00]} 58. Kc3 {[%emt 0:00:10]} Rf3+ {[%emt 0:00:06]} 59. Kd4 {[%emt 0:00:26]}
Rb3 {[%emt 0:00:15]} 60. Nd3 {[%emt 0:02:58]} Nf4 {[%emt 0:09:20]} 61. Nxf4 {
[%emt 0:00:44]} Kxf4 {[%emt 0:00:04]} 62. c5 {[%emt 0:00:07]} Rxb2 {[%emt 0:00:
00]} 1/2-1/2

[Event "44th Chess Olympiad Open 2022"]
[Site "Chennai"]
[Date "2022.07.31"]
[Round "3.58"]
[White "Shaker, Musab"]
[Black "Gengler, Pierre"]
[Result "0-1"]
[WhiteElo "1705"]
[BlackElo "2194"]
[Annotator "RC"]
[PlyCount "65"]
[EventDate "2022.??.??"]
[TimeControl "60"]

1. d4 {[%emt 1:31:00]} g6 {[%emt 1:31:00]} 2. Nf3 {[%emt 0:00:30]} Bg7 {
[%emt 0:00:30]} 3. Bf4 {[%emt 0:00:30]} d6 {[%emt 0:00:30]} 4. e3 {[%emt 0:00:
00]} Nd7 {[%emt 0:00:00]} 5. Be2 {[%emt 0:00:00]} e5 {[%emt 0:00:00]} 6. Bg3 {
[%emt 0:00:00]} Nh6 {[%emt 0:00:00]} 7. h3 {[%emt 0:00:00]} O-O {[%emt 0:00:00]
} 8. O-O {[%emt 0:00:00]} b6 {[%emt 0:00:00]} 9. c4 {[%emt 0:00:00]} Nf5 {
[%emt 0:00:00]} 10. Bh2 {[%emt 0:00:00]} Bb7 {[%emt 0:00:00]} 11. Nc3 {[%emt 0:
00:00]} Qe7 {[%emt 0:00:00]} 12. Re1 {[%emt 0:00:00]} a6 {[%emt 0:00:00]} 13.
Nd5 {[%emt 0:00:00]} Bxd5 {[%emt 0:00:00]} 14. cxd5 {[%emt 0:00:00]} exd4 {
[%emt 0:00:00]} 15. exd4 {[%emt 0:00:00]} Qf6 {[%emt 0:00:00]} 16. Rc1 {
[%emt 0:00:00]} Rfc8 {[%emt 0:00:00]} 17. Bf1 {[%emt 0:00:00]} Nxd4 {[%emt 0:
00:00]} 18. Nxd4 {[%emt 0:00:00]} Qxd4 {[%emt 0:00:00]} 19. Qxd4 {[%emt 0:00:
00]} Bxd4 {[%emt 0:00:00]} 20. Re7 {[%emt 0:00:00]} Nc5 {[%emt 0:00:00]} 21. b4
{[%emt 0:00:00]} Bf6 {[%emt 0:00:00]} 22. Re3 {[%emt 0:00:00]} Na4 {[%emt 0:00:
00]} 23. Be2 {[%emt 0:00:00]} Bg5 {[%emt 0:00:00]} 24. f4 {[%emt 0:00:00]} Bf6
{[%emt 0:00:00]} 25. Re4 {[%emt 0:00:00]} Nc3 {[%emt 0:00:00]} 26. Re3 {
[%emt 0:00:00]} Bd4 {[%emt 0:00:00]} 27. Rcxc3 {[%emt 0:00:00]} Re8 {[%emt 0:
00:00]} 28. Kf2 {[%emt 0:00:00]} Rxe3 {[%emt 0:00:00]} 29. Rxe3 {[%emt 0:00:00]
} Re8 {[%emt 0:00:00]} 30. Bxa6 {[%emt 0:00:00]} Rxe3 {[%emt 0:00:00]} 31. Kf1
{[%emt 0:00:00]} Rc3 {[%emt 0:00:00]} 32. Ke1 {[%emt 0:01:06]} Rc2 {[%emt 0:00:
00]} 33. f5 {[%emt 0:00:45]} 0-1

[Event "44th Chess Olympiad Open 2022"]
[Site "Chennai"]
[Date "2022.07.31"]
[Round "3.59"]
[White "Tran, Thanh Tu"]
[Black "Al Mutairi, Abdullah F"]
[Result "1-0"]
[WhiteElo "2375"]
[BlackElo "1916"]
[Annotator "RC"]
[PlyCount "105"]
[EventDate "2022.??.??"]
[TimeControl "60"]

1. d4 {[%emt 0:00:05]} Nf6 {[%emt 0:00:11]} 2. Nf3 {[%emt 0:00:09]} d5 {
[%emt 0:00:32]} 3. c3 {[%emt 0:00:38]} c6 {[%emt 0:01:05]} 4. Qc2 {[%emt 0:00:
00]} e6 {[%emt 0:05:01]} 5. Bf4 {[%emt 0:01:30]} c5 {[%emt 0:00:32]} 6. e3 {
[%emt 0:00:50]} Nc6 {[%emt 0:00:48]} 7. Nbd2 {[%emt 0:05:13]} cxd4 {[%emt 0:00:
00]} 8. exd4 {[%emt 0:01:35]} Bd6 {[%emt 0:00:23]} 9. Bg3 {[%emt 0:07:03]} Qc7
{[%emt 0:02:01]} 10. Bd3 {[%emt 0:02:15]} Bd7 {[%emt 0:03:58]} 11. O-O {
[%emt 0:04:04]} Bxg3 {[%emt 0:01:21]} 12. fxg3 {[%emt 0:01:47]} O-O-O {[%emt 0:
00:00]} 13. b4 {[%emt 0:01:32]} Kb8 {[%emt 0:01:34]} 14. Nb3 {[%emt 0:05:38]}
Ng4 {[%emt 0:27:49]} 15. Rae1 {[%emt 0:05:57]} h5 {[%emt 0:05:28]} 16. Ng5 {
[%emt 0:18:40]} Be8 {[%emt 0:04:07]} 17. b5 {[%emt 0:04:56]} Na5 {[%emt 0:00:
00]} 18. Nxa5 {[%emt 0:00:25]} Qxa5 {[%emt 0:01:32]} 19. Nxf7 {[%emt 0:00:11]}
Bxf7 {[%emt 0:00:44]} 20. Rxf7 {[%emt 0:00:02]} e5 {[%emt 0:00:18]} 21. h3 {
[%emt 0:05:15]} Nh6 {[%emt 0:01:50]} 22. Rxg7 {[%emt 0:01:45]} e4 {[%emt 0:00:
00]} 23. Bf1 {[%emt 0:03:30]} Nf5 {[%emt 0:00:40]} 24. Rg5 {[%emt 0:00:14]}
Nxd4 {[%emt 0:00:24]} 25. Qd2 {[%emt 0:00:27]} Nxb5 {[%emt 0:01:34]} 26. Rxd5 {
[%emt 0:01:24]} Qb6+ {[%emt 0:02:41]} 27. Kh2 {[%emt 0:00:23]} Nd6 {[%emt 0:00:
00]} 28. Rd1 {[%emt 0:02:20]} Nf7 {[%emt 0:01:15]} 29. Qf4+ {[%emt 0:02:36]}
Qc7 {[%emt 0:00:13]} 30. Qxe4 {[%emt 0:00:56]} h4 {[%emt 0:00:23]} 31. Qf4 {
[%emt 0:01:58]} hxg3+ {[%emt 0:00:41]} 32. Qxg3 {[%emt 0:00:03]} Qxg3+ {
[%emt 0:01:24]} 33. Kxg3 {[%emt 0:00:03]} Rde8 {[%emt 0:00:30]} 34. Rf5 {
[%emt 0:05:23]} Nd8 {[%emt 0:00:41]} 35. Bc4 {[%emt 0:03:29]} a6 {[%emt 0:00:
00]} 36. Bd5 {[%emt 0:01:43]} Rh7 {[%emt 0:00:38]} 37. Rdf1 {[%emt 0:00:51]}
Kc7 {[%emt 0:00:33]} 38. c4 {[%emt 0:00:34]} Re2 {[%emt 0:00:19]} 39. R1f2 {
[%emt 0:00:14]} Rg7+ {[%emt 0:00:24]} 40. Kf3 {[%emt 0:02:19]} Re1 {[%emt 0:00:
00]} 41. g4 {[%emt 0:31:46]} Kd6 {[%emt 0:04:56]} 42. Kg3 {[%emt 0:00:00]} b6 {
[%emt 0:02:04]} 43. h4 {[%emt 0:00:00]} Rg1+ {[%emt 0:01:17]} 44. Rg2 {[%emt 0:
00:00]} Rc1 {[%emt 0:00:57]} 45. h5 {[%emt 0:00:00]} b5 {[%emt 0:01:23]} 46. h6
{[%emt 0:00:00]} Rh7 {[%emt 0:00:32]} 47. g5 {[%emt 0:00:00]} bxc4 {[%emt 0:00:
00]} 48. Bg8 {[%emt 0:00:00]} Rh8 {[%emt 0:03:05]} 49. h7 {[%emt 0:00:00]} c3 {
[%emt 0:01:35]} 50. g6 {[%emt 0:00:00]} c2 {[%emt 0:00:48]} 51. g7 {[%emt 0:00:
00]} Rh1 {[%emt 0:01:42]} 52. Rd5+ {[%emt 0:00:00]} Ke7 {[%emt 0:02:10]} 53.
Re2+ {[%emt 0:00:00]} 1-0

[Event "44th Chess Olympiad Open 2022"]
[Site "Chennai"]
[Date "2022.07.31"]
[Round "3.59"]
[White "Averbukh, Alex"]
[Black "Alzamil, Abdulaziz"]
[Result "1-0"]
[WhiteElo "2155"]
[BlackElo "1871"]
[Annotator "RC"]
[PlyCount "69"]
[EventDate "2022.??.??"]
[TimeControl "60"]

1. e4 {[%emt 0:00:05]} d6 {[%emt 0:00:06]} 2. d4 {[%emt 0:00:15]} Nf6 {[%emt 0:
00:00]} 3. Nc3 {[%emt 0:00:12]} e5 {[%emt 0:00:51]} 4. Nge2 {[%emt 0:00:18]}
Be7 {[%emt 0:01:44]} 5. g3 {[%emt 0:00:46]} c6 {[%emt 0:04:32]} 6. Bg2 {
[%emt 0:00:46]} O-O {[%emt 0:02:22]} 7. O-O {[%emt 0:00:14]} Re8 {[%emt 0:00:
00]} 8. h3 {[%emt 0:00:55]} Nbd7 {[%emt 0:03:54]} 9. a4 {[%emt 0:00:35]} a5 {
[%emt 0:03:21]} 10. g4 {[%emt 0:00:57]} Nf8 {[%emt 0:20:19]} 11. f4 {[%emt 0:
00:00]} exf4 {[%emt 0:14:24]} 12. Bxf4 {[%emt 0:02:16]} Qb6 {[%emt 0:03:37]}
13. Qd3 {[%emt 0:05:56]} Ng6 {[%emt 0:09:58]} 14. Be3 {[%emt 0:02:58]} Qa6 {
[%emt 0:05:26]} 15. Qd2 {[%emt 0:05:20]} Be6 {[%emt 0:02:04]} 16. Ng3 {[%emt 0:
00:00]} Bc4 {[%emt 0:02:39]} 17. Rf2 {[%emt 0:00:56]} Nh4 {[%emt 0:02:22]} 18.
Bh1 {[%emt 0:00:57]} Ng6 {[%emt 0:06:23]} 19. g5 {[%emt 0:03:58]} Nd7 {[%emt 0:
00:00]} 20. b3 {[%emt 0:07:49]} Be6 {[%emt 0:00:17]} 21. Bg2 {[%emt 0:00:15]}
d5 {[%emt 0:01:52]} 22. exd5 {[%emt 0:00:36]} cxd5 {[%emt 0:00:13]} 23. Nxd5 {
[%emt 0:00:26]} Bd6 {[%emt 0:07:17]} 24. Nf4 {[%emt 0:01:17]} Rac8 {[%emt 0:00:
00]} 25. c4 {[%emt 0:02:42]} Bb4 {[%emt 0:00:51]} 26. Qd3 {[%emt 0:00:47]} Ndf8
{[%emt 0:02:12]} 27. Raf1 {[%emt 0:00:51]} Qd6 {[%emt 0:00:36]} 28. Ne4 {
[%emt 0:01:50]} Qd7 {[%emt 0:00:59]} 29. Nh5 {[%emt 0:01:36]} Kh8 {[%emt 0:00:
00]} 30. Bc1 {[%emt 0:03:05]} Ne5 {[%emt 0:00:29]} 31. Qg3 {[%emt 0:00:45]}
Nxc4 {[%emt 0:00:39]} 32. bxc4 {[%emt 0:03:28]} Bxc4 {[%emt 0:00:01]} 33. Bb2 {
[%emt 0:02:51]} Bxf1 {[%emt 0:00:19]} 34. d5 {[%emt 0:00:49]} Kg8 {[%emt 0:00:
00]} 35. Nef6+ {[%emt 0:00:38]} 1-0

[Event "44th Chess Olympiad Open 2022"]
[Site "Chennai"]
[Date "2022.07.31"]
[Round "3.59"]
[White "Alrehaili, Ahmed Abdullah S"]
[Black "Kobayashi, Atsuhiko"]
[Result "1-0"]
[WhiteElo "1986"]
[BlackElo "2156"]
[Annotator "RC"]
[PlyCount "55"]
[EventDate "2022.??.??"]
[TimeControl "60"]

1. e4 {[%emt 0:00:02]} c5 {[%emt 0:00:07]} 2. Nf3 {[%emt 0:00:06]} e6 {[%emt 0:
00:00]} 3. b3 {[%emt 0:00:06]} a6 {[%emt 0:00:08]} 4. Bb2 {[%emt 0:02:10]} Nc6
{[%emt 0:00:08]} 5. g3 {[%emt 0:01:08]} d5 {[%emt 0:00:16]} 6. exd5 {[%emt 0:
00:00]} exd5 {[%emt 0:00:05]} 7. Qe2+ {[%emt 0:01:39]} Qe7 {[%emt 0:00:57]} 8.
Qxe7+ {[%emt 0:01:08]} Ngxe7 {[%emt 0:00:18]} 9. Bg2 {[%emt 0:03:26]} Bf5 {
[%emt 0:07:00]} 10. d3 {[%emt 0:02:50]} O-O-O {[%emt 0:06:44]} 11. O-O {
[%emt 0:02:06]} f6 {[%emt 0:03:57]} 12. Nc3 {[%emt 0:06:34]} Ng6 {[%emt 0:00:
00]} 13. Nd2 {[%emt 0:10:38]} Nd4 {[%emt 0:08:15]} 14. Rac1 {[%emt 0:06:49]}
Ne7 {[%emt 0:08:43]} 15. Rfe1 {[%emt 0:01:34]} Bg4 {[%emt 0:02:32]} 16. Kf1 {
[%emt 0:01:01]} Kc7 {[%emt 0:04:37]} 17. b4 {[%emt 0:08:45]} cxb4 {[%emt 0:00:
00]} 18. Nxd5+ {[%emt 0:11:09]} Nxd5 {[%emt 0:00:11]} 19. Bxd4 {[%emt 0:00:11]}
Nf4 {[%emt 0:08:55]} 20. Bxf6 {[%emt 0:10:24]} gxf6 {[%emt 0:00:12]} 21. gxf4 {
[%emt 0:00:02]} Bd6 {[%emt 0:03:29]} 22. Ne4 {[%emt 0:01:02]} Bxf4 {[%emt 0:00:
00]} 23. Rb1 {[%emt 0:01:29]} f5 {[%emt 0:09:34]} 24. Rxb4 {[%emt 0:04:10]} b5
{[%emt 0:02:55]} 25. Nc5 {[%emt 0:06:42]} Bd2 {[%emt 0:02:58]} 26. Nxa6+ {
[%emt 0:00:18]} Kc8 {[%emt 0:02:43]} 27. Rxb5 {[%emt 0:02:42]} Bxe1 {[%emt 0:
00:00]} 28. Bc6 {[%emt 0:00:03]} 1-0